bitfinex/quotes_BTCUSD_20250619
["timestamp","ask_amount","ask_price","bid_price","bid_amount"]
[1750295131452,3.94944672,104710.0,104700.0,0.41252796]
[1750295131666,4.30921851,104710.0,104700.0,0.211955]
[1750295131922,4.30921851,104710.0,104700.0,0.194155]
[1750295132118,4.30921851,104710.0,104700.0,0.03093149]
[1750295132539,4.30921851,104710.0,104700.0,0.21181149]
[1750295132740,3.94944672,104710.0,104700.0,0.21181149]
[1750295132947,4.30921851,104710.0,104700.0,0.03093149]
[1750295133177,4.30921851,104710.0,104700.0,0.41234454]
[1750295133386,4.12776443,104710.0,104700.0,0.26015672]
[1750295133603,3.74696754,104710.0,104700.0,0.47951672]
[1750295133814,3.737418,104710.0,104700.0,0.47951059]
[1750295134026,0.012,104710.0,104700.0,0.47951059]
[1750295134240,0.212,104710.0,104700.0,0.47951059]
[1750295134481,0.21909899,104710.0,104700.0,0.47951674]
[1750295134704,0.02871,104720.0,104700.0,0.45086392]
[1750295134915,0.22864617,104720.0,104710.0,0.25825335]
[1750295135120,0.21909717,104720.0,104710.0,0.26780289]
[1750295135329,3.356705,104720.0,104710.0,0.44840289]
[1750295135537,0.34,104720.0,104710.0,0.44840289]
[1750295135781,0.028708,104730.0,104720.0,0.25843219]
[1750295136453,0.01908824,104770.0,104760.0,0.21954834]
[1750295136667,0.27003239,104780.0,104770.0,0.21952737]
[1750295136886,0.20998239,104770.0,104760.0,0.42025782]
[1750295137141,0.2470269,104770.0,104760.0,0.43934834]
[1750295137361,3.94485468,104770.0,104760.0,0.20045809]
[1750295137590,0.21000253,104760.0,104750.0,0.20913078]
[1750295137792,3.37578941,104790.0,104780.0,0.20996345]
[1750295138002,3.37578941,104790.0,104780.0,0.39176345]
[1750295138003,0.26016301,104790.0,104780.0,0.39176345]
[1750295138225,0.26016301,104790.0,104780.0,0.41085005]
[1750295138468,0.60970545,104790.0,104780.0,0.4203933]
[1750295138697,0.76947724,104790.0,104780.0,0.40130689]
[1750295138915,0.7563373,104790.0,104770.0,0.20042325]
[1750295139147,0.20954389,104770.0,104760.0,0.2295029]
[1750295139354,0.2195063,104780.0,104770.0,0.21952737]
[1750295139355,3.356705,104780.0,104770.0,0.21952737]
[1750295139603,3.40372833,104780.0,104770.0,0.21952737]
[1750295139838,3.40372833,104780.0,104760.0,0.43062244]
[1750295139839,3.36624889,104770.0,104760.0,0.24890244]
[1750295140040,0.21839569,104770.0,104760.0,0.43062244]
[1750295140672,0.2088518,104770.0,104760.0,0.43062244]
[1750295140912,0.21908824,104770.0,104760.0,0.43062281]
[1750295141117,0.20954398,104770.0,104760.0,0.43062281]
[1750295141327,0.21908815,104770.0,104760.0,0.43062281]
[1750295141537,0.23817694,104770.0,104760.0,0.41098281]
[1750295141750,0.24632123,104770.0,104760.0,0.41098281]
[1750295141941,0.24932123,104770.0,104760.0,0.41198281]
[1750295142109,0.25886576,104770.0,104760.0,0.41198281]
[1750295142323,0.2302328,104770.0,104760.0,0.41198281]
[1750295142760,0.23977706,104770.0,104760.0,0.41198281]
[1750295142998,0.23023358,104770.0,104760.0,0.41158281]
[1750295143286,0.2206896,104770.0,104760.0,0.41158281]
[1750295143558,0.23023358,104770.0,104760.0,0.41158281]
[1750295143767,0.0206896,104770.0,104760.0,0.88879636]
[1750295144208,0.0206896,104770.0,104760.0,1.263109]
[1750295144430,0.01153415,104770.0,104760.0,1.313109]
[1750295144882,5e-05,104800.0,104790.0,0.21948548]
[1750295145111,5e-05,104800.0,104790.0,0.89503903]
[1750295145341,5e-05,104800.0,104790.0,0.53526724]
[1750295145561,5e-05,104800.0,104790.0,0.89503903]
[1750295145790,5e-05,104800.0,104790.0,0.53526724]
[1750295146055,5e-05,104800.0,104790.0,0.89503903]
[1750295146508,0.00105,104800.0,104790.0,0.53926724]
[1750295146730,0.00105,104800.0,104790.0,0.89903903]
[1750295147167,0.00105,104800.0,104790.0,0.89927903]
[1750295147664,0.00105,104800.0,104790.0,1.30182861]
[1750295147879,0.00076364,104800.0,104790.0,0.99205682]
[1750295148096,0.00076364,104800.0,104790.0,0.99753682]
[1750295148311,0.00076364,104800.0,104790.0,0.97461411]
[1750295148544,0.00076364,104800.0,104790.0,0.9512411]
[1750295148775,0.01912895,104820.0,104810.0,0.2194436]
[1750295149006,0.01912895,104820.0,104810.0,0.47404224]
[1750295149229,0.00958934,104820.0,104810.0,0.49312338]
[1750295149450,0.03820809,104820.0,104810.0,0.49312338]
[1750295149668,0.00958934,104820.0,104810.0,0.49312338]
[1750295150341,0.02866856,104820.0,104810.0,0.49312338]
[1750295150560,5e-05,104820.0,104810.0,0.51282338]
[1750295150775,5e-05,104820.0,104810.0,0.71121517]
[1750295150979,5e-05,104820.0,104810.0,0.89209517]
[1750295151213,0.00105,104820.0,104810.0,0.89409517]
[1750295151663,0.00105,104820.0,104810.0,0.53432338]
[1750295151892,0.41093241,104820.0,104810.0,0.19282148]
[1750295152117,0.22047285,104820.0,104810.0,0.40212406]
[1750295152340,3.62468123,104820.0,104810.0,0.18268]
[1750295152588,3.62468123,104820.0,104810.0,0.002]
[1750295152826,4.46059478,104820.0,104810.0,0.002]
[1750295153057,4.52067491,104820.0,104810.0,0.002]
[1750295153512,4.46059478,104820.0,104810.0,0.002]
[1750295154418,0.58206237,104810.0,104800.0,0.18056]
[1750295154631,0.02863004,104780.0,104770.0,0.22904172]
[1750295154845,0.22863004,104780.0,104770.0,0.22904172]
[1750295155089,0.01908642,104780.0,104770.0,0.40944172]
[1750295155500,0.22863004,104780.0,104770.0,0.40944172]
[1750295155916,0.22963004,104780.0,104770.0,0.40944172]
[1750295156143,0.22963004,104780.0,104770.0,0.40944181]
[1750295156365,0.22963004,104780.0,104770.0,0.39989774]
[1750295156574,0.02008642,104780.0,104770.0,0.40944181]
[1750295156788,0.22008642,104780.0,104770.0,0.22904181]
[1750295156993,0.02008642,104780.0,104770.0,0.40920181]
[1750295157205,0.23917366,104780.0,104770.0,0.40920181]
[1750295157404,0.00954407,104770.0,104760.0,0.21000272]
[1750295157674,0.20954407,104770.0,104760.0,0.39946816]
[1750295157882,0.21908833,104770.0,104760.0,0.39946816]
[1750295158299,0.20954407,104770.0,104760.0,0.39946816]
[1750295158514,0.2,104770.0,104760.0,0.39946816]
[1750295158734,0.21908815,104770.0,104760.0,0.39946816]
[1750295158996,0.02963241,104770.0,104760.0,0.22454816]
[1750295159217,0.57075491,104770.0,104760.0,0.005]
[1750295159440,4.26745991,104770.0,104760.0,0.005]
[1750295159657,4.40510167,104770.0,104760.0,0.18468]
[1750295159882,4.00392988,104770.0,104760.0,0.18468]
[1750295160316,3.71579324,104770.0,104760.0,0.40877396]
[1750295160531,0.22863259,104770.0,104760.0,0.40877396]
[1750295160750,0.21954806,104760.0,104750.0,0.20047599]
[1750295160959,0.02863596,104760.0,104750.0,0.39908824]
[1750295161171,0.02863596,104760.0,104750.0,0.40863414]
[1750295161609,3.556705,104760.0,104750.0,0.40863414]
[1750295161827,0.53087612,104780.0,104750.0,0.38954117]
[1750295162036,0.38627021,104780.0,104770.0,0.2290719]
[1750295162240,0.39581392,104780.0,104770.0,0.39900783]
[1750295162457,0.57714913,104780.0,104770.0,0.38946357]
[1750295162677,0.55806207,104780.0,104770.0,0.17948]
[1750295163058,0.02863578,104760.0,104750.0,0.19192946]
[1750295163300,0.23673249,104760.0,104750.0,0.21956779]
[1750295163511,0.24627793,104760.0,104750.0,0.38962189]
[1750295163719,0.2,104750.0,104740.0,0.20049888]
[1750295163936,0.24628129,104750.0,104740.0,0.2100466]
[1750295164152,0.23673413,104750.0,104740.0,0.40866049]
[1750295164371,0.23673404,104750.0,104740.0,0.40866049]
[1750295164595,0.26537318,104750.0,104740.0,0.39911368]
[1750295164807,0.26537318,104750.0,104740.0,0.40866049]
[1750295164808,0.23673404,104750.0,104740.0,0.40866049]
[1750295165026,0.44675725,104750.0,104740.0,0.39911368]
[1750295165249,0.24628066,104750.0,104740.0,0.40862067]
[1750295165515,0.01864224,104750.0,104740.0,0.42016748]
[1750295165762,0.22818795,104750.0,104740.0,0.41988748]
[1750295166000,0.01864224,104750.0,104740.0,0.53242924]
[1750295166231,0.03773413,104750.0,104740.0,0.53242924]
[1750295166448,0.03773404,104750.0,104740.0,0.33692924]
[1750295166697,0.0377344,104750.0,104740.0,0.30828836]
[1750295166915,0.03773394,104750.0,104740.0,0.50638225]
[1750295167395,0.05682664,104750.0,104740.0,0.23114058]
[1750295167606,0.24775742,104750.0,104740.0,0.41002058]
[1750295167822,0.05682664,104750.0,104740.0,0.41956739]
[1750295168271,0.05690329,104750.0,104740.0,0.24068739]
[1750295168537,0.25352409,104750.0,104740.0,0.18082]
[1750295168773,0.25352409,104750.0,104740.0,0.0021]
[1750295168774,1.113672,104750.0,104740.0,0.0021]
[1750295168979,4.47429828,104750.0,104740.0,0.0021]
[1750295169657,4.47429828,104750.0,104740.0,0.2312377]
[1750295169658,3.78520733,104750.0,104740.0,0.2312377]
[1750295169882,0.36826469,104750.0,104740.0,0.2312377]
[1750295170108,0.01871898,104750.0,104740.0,0.2312377]
[1750295170578,0.01054571,104750.0,104740.0,0.2465377]
[1750295170763,0.01869054,104750.0,104740.0,0.2465377]
[1750295171006,0.001,104750.0,104740.0,0.2465377]
[1750295171217,0.001,104750.0,104740.0,0.35827946]
[1750295171877,0.01054581,104750.0,104740.0,0.35827946]
[1750295172104,0.22056929,104750.0,104740.0,0.21214381]
[1750295172321,0.23011582,104750.0,104740.0,0.22169098]
[1750295172540,3.57727492,104750.0,104740.0,0.39074381]
[1750295172757,3.56772875,104750.0,104740.0,0.0021]
[1750295172982,3.56772875,104750.0,104740.0,0.38119627]
[1750295173447,3.56772875,104750.0,104740.0,0.39074335]
[1750295173876,3.56772875,104750.0,104740.0,0.40029034]
[1750295174118,3.56772875,104750.0,104740.0,0.1807]
[1750295174329,3.56772875,104750.0,104740.0,0.39074344]
[1750295174555,3.36725117,104750.0,104740.0,0.40029043]
[1750295174776,3.38634342,104750.0,104740.0,0.40983724]
[1750295175262,3.357705,104750.0,104740.0,0.40983724]
[1750295175496,3.39588931,104750.0,104740.0,0.40983724]
[1750295175749,0.03918431,104750.0,104740.0,0.23123724]
[1750295175955,0.201,104750.0,104740.0,0.40939724]
[1750295176180,0.21054581,104750.0,104740.0,0.40939724]
[1750295176412,0.001,104750.0,104740.0,0.40939724]
[1750295177070,0.001,104750.0,104740.0,0.42439724]
[1750295177317,0.001,104750.0,104740.0,0.88041079]
[1750295177533,0.001,104750.0,104740.0,0.536839]
[1750295177743,0.01054571,104750.0,104740.0,0.536839]
[1750295177960,0.001,104750.0,104740.0,0.536839]
[1750295181226,0.001,104750.0,104740.0,0.89661079]
[1750295182262,0.001,104750.0,104740.0,0.520559]
[1750295182483,0.01054571,104750.0,104740.0,0.327479]
[1750295182696,0.02009152,104750.0,104740.0,0.505519]
[1750295183302,0.04872967,104750.0,104740.0,0.505519]
[1750295183539,0.02009152,104750.0,104740.0,0.505519]
[1750295183745,0.01054571,104750.0,104740.0,0.505519]
[1750295183954,0.001,104750.0,104740.0,0.505519]
[1750295184166,0.01054571,104750.0,104740.0,0.505519]
[1750295184375,0.0200917,104750.0,104740.0,0.505519]
[1750295184633,0.24873057,104750.0,104740.0,0.23123724]
[1750295184852,0.22963778,104750.0,104740.0,0.23123724]
[1750295185055,0.22963778,104750.0,104740.0,0.40903724]
[1750295185270,0.23918413,104750.0,104740.0,0.23123724]
[1750295185478,0.24873139,104750.0,104740.0,0.40895733]
[1750295185694,0.2200917,104750.0,104740.0,0.41850414]
[1750295186100,0.22963796,104750.0,104740.0,0.41850414]
[1750295186328,0.42056874,104750.0,104740.0,0.0021]
[1750295186549,0.2242534,104750.0,104740.0,0.0021]
[1750295186763,0.2398534,104750.0,104740.0,0.21214372]
[1750295186974,0.2398534,104750.0,104740.0,0.38007646]
[1750295187185,3.5965584,104750.0,104740.0,0.20259646]
[1750295187399,3.60544971,104750.0,104740.0,0.39909089]
[1750295187668,4.3052215,104750.0,104740.0,0.0021]
[1750295187903,4.54214079,104750.0,104740.0,0.17942]
[1750295188142,4.54214079,104750.0,104740.0,0.17946]
[1750295188494,4.54214306,104750.0,104740.0,0.17946]
[1750295188727,4.5800684,104750.0,104740.0,0.17946]
[1750295188966,4.5800684,104750.0,104740.0,0.0021]
[1750295189195,4.48391918,104750.0,104740.0,0.17942]
[1750295189639,4.48391918,104750.0,104740.0,0.0021]
[1750295190077,4.48235918,104750.0,104740.0,0.0021]
[1750295190513,4.12258739,104750.0,104740.0,0.0021]
[1750295190724,4.48235918,104750.0,104740.0,0.0021]
[1750295190962,4.48235814,104750.0,104740.0,0.0021]
[1750295191179,4.44458706,104750.0,104740.0,0.0021]
[1750295192521,4.06861527,104750.0,104740.0,0.0021]
[1750295192714,4.0688357,104750.0,104740.0,0.0021]
[1750295192977,4.44430749,104750.0,104740.0,0.0021]
[1750295193459,4.47279006,104750.0,104740.0,0.0021]
[1750295193663,4.3452483,104750.0,104740.0,0.0021]
[1750295193882,3.95699545,104750.0,104740.0,0.37951636]
[1750295194094,0.60029045,104750.0,104740.0,0.38906353]
[1750295194306,0.60029045,104750.0,104740.0,0.3986107]
[1750295194525,0.40037332,104750.0,104740.0,0.41770441]
[1750295194820,0.00954489,104760.0,104750.0,0.21956929]
[1750295195023,3.356705,104760.0,104750.0,0.21956929]
[1750295195671,0.02863314,104770.0,104760.0,0.21954834]
[1750295195923,0.06101781,104780.0,104770.0,0.21952737]
[1750295196149,3.36560168,104780.0,104770.0,0.21952737]
[1750295196373,3.76655253,104780.0,104770.0,0.21952737]
[1750295196583,3.60788596,104780.0,104770.0,0.20043895]
[1750295196836,3.54760719,104780.0,104770.0,0.21952756]
[1750295197050,3.57038224,104780.0,104770.0,0.21952774]
[1750295197273,3.57038224,104780.0,104770.0,0.23861607]
[1750295197518,3.53806348,104780.0,104770.0,0.229072]
[1750295197732,3.54106348,104780.0,104770.0,0.23961607]
[1750295197945,3.54106293,104780.0,104770.0,0.23961607]
[1750295198159,3.56014999,104780.0,104770.0,0.23961607]
[1750295198622,3.55060637,104780.0,104770.0,0.23961607]
[1750295198838,3.20171004,104780.0,104770.0,0.23961607]
[1750295199052,3.21125339,104780.0,104770.0,0.23961607]
[1750295199266,3.18262307,104780.0,104770.0,0.23961607]
[1750295199721,3.20171004,104780.0,104770.0,0.23961607]
[1750295200147,3.20170986,104780.0,104770.0,0.23961607]
[1750295200353,3.19216642,104780.0,104770.0,0.23961607]
[1750295200568,0.003,104780.0,104770.0,0.23961607]
[1750295201466,0.003,104780.0,104770.0,0.33585783]
[1750295201688,0.003,104780.0,104770.0,0.001]
[1750295201918,3.74281488,104780.0,104770.0,0.001]
[1750295202144,3.49077303,104780.0,104770.0,0.001]
[1750295202368,3.82715572,104780.0,104770.0,0.001]
[1750295202796,3.79686846,104780.0,104770.0,0.001]
[1750295203047,4.28691022,104780.0,104770.0,0.001]
[1750295203288,4.49598536,104780.0,104770.0,0.001]
[1750295203571,4.52446793,104780.0,104770.0,0.001]
[1750295203785,4.62061715,104780.0,104770.0,0.001]
[1750295204665,4.62990566,104780.0,104770.0,0.001]
[1750295205118,3.72010321,104750.0,104740.0,0.1767]
[1750295205552,4.079875,104750.0,104740.0,0.1767]
[1750295205764,4.079875,104750.0,104740.0,0.0001]
[1750295206434,4.20862422,104750.0,104740.0,0.0001]
[1750295206652,4.23146024,104750.0,104740.0,0.0001]
[1750295206872,3.87168845,104750.0,104740.0,0.0001]
[1750295207086,4.23246024,104750.0,104740.0,0.0021]
[1750295208250,3.85638845,104750.0,104740.0,0.0021]
[1750295208464,4.19986024,104750.0,104740.0,0.0021]
[1750295208735,3.84008845,104750.0,104740.0,0.0021]
[1750295208909,4.25902288,104750.0,104740.0,0.0021]
[1750295209834,4.22986024,104750.0,104740.0,0.0021]
[1750295211014,4.10361848,104750.0,104740.0,0.0021]
[1750295211246,3.74384669,104750.0,104740.0,0.21214363]
[1750295211697,3.74384669,104750.0,104740.0,0.21214381]
[1750295211939,3.73430061,104750.0,104740.0,0.21214381]
[1750295212162,3.55291591,104750.0,104740.0,0.2312377]
[1750295212414,0.36009189,104750.0,104740.0,0.2312377]
[1750295212917,0.01054581,104750.0,104740.0,0.2619377]
[1750295213154,0.21054581,104750.0,104740.0,0.2619377]
[1750295213389,0.2200918,104750.0,104740.0,0.2619377]
[1750295213871,0.22963797,104750.0,104740.0,0.2619377]
[1750295214111,0.2200918,104750.0,104740.0,0.2312377]
[1750295214586,0.43011501,104750.0,104740.0,0.22169089]
[1750295214815,0.43011564,104750.0,104740.0,0.22169089]
[1750295215074,0.23918468,104750.0,104740.0,0.2312377]
[1750295216225,0.23918468,104750.0,104740.0,0.20259627]
[1750295216226,0.430116,104750.0,104740.0,0.20259627]
[1750295216502,0.22056992,104750.0,104740.0,0.37787636]
[1750295216723,3.74087545,104750.0,104740.0,0.17742]
[1750295216942,4.17702467,104750.0,104740.0,0.17742]
[1750295217385,4.08087545,104750.0,104740.0,0.17742]
[1750295217601,4.08087545,104750.0,104740.0,0.18696745]
[1750295217817,3.72110366,104750.0,104740.0,0.38746372]
[1750295218254,3.72110366,104750.0,104740.0,0.17742]
[1750295218475,3.72110366,104750.0,104740.0,0.18696745]
[1750295218691,3.490915,104750.0,104740.0,0.38746381]
[1750295218907,0.53093078,104750.0,104740.0,0.38746381]
[1750295219132,3.69139231,104750.0,104740.0,0.38746381]
[1750295219436,0.34,104750.0,104740.0,0.41610487]
[1750295219645,0.34,104750.0,104740.0,0.44800487]
[1750295219898,0.37818395,104750.0,104740.0,0.44800487]
[1750295220129,0.37818395,104750.0,104740.0,0.43210487]
[1750295220570,0.54,104750.0,104740.0,0.43210487]
[1750295220797,0.34954571,104750.0,104740.0,0.43210487]
[1750295221020,0.35909152,104750.0,104740.0,0.44860487]
[1750295221239,0.54,104750.0,104740.0,0.44860487]
[1750295221460,0.34,104750.0,104740.0,0.44860487]
[1750295221688,0.01908988,104760.0,104750.0,0.21956929]
[1750295221909,0.37818049,104760.0,104750.0,0.21956929]
[1750295222133,0.3781804,104760.0,104750.0,0.21956929]
[1750295222363,0.36863505,104760.0,104750.0,0.21956929]
[1750295222612,0.35908988,104760.0,104750.0,0.21956929]
[1750295222887,0.19092447,104770.0,104760.0,0.20045755]
[1750295222888,0.2,104770.0,104760.0,0.20045755]
[1750295223125,0.028697,104780.0,104770.0,0.21952737]
[1750295223126,0.21908651,104780.0,104770.0,0.21952737]
[1750295223357,0.23817357,104780.0,104770.0,0.21952737]
[1750295223575,0.57817412,104780.0,104770.0,0.21952737]
[1750295223806,0.57817366,104780.0,104770.0,0.21952737]
[1750295224033,0.57817366,104780.0,104770.0,0.2099833]
[1750295224331,0.58771746,104780.0,104770.0,0.22907173]
[1750295224567,0.00954435,104770.0,104760.0,0.41888262]
[1750295224774,0.00954435,104770.0,104760.0,0.40238262]
[1750295224775,0.00954417,104770.0,104760.0,0.40238262]
[1750295225215,0.01908824,104770.0,104760.0,0.40238262]
[1750295225442,0.01908824,104770.0,104760.0,0.38480262]
[1750295225657,0.0286325,104770.0,104760.0,0.38480262]
[1750295225872,0.03817703,104770.0,104760.0,0.38480262]
[1750295226119,0.03817703,104770.0,104760.0,0.39422825]
[1750295226120,0.04772147,104770.0,104760.0,0.39422825]
[1750295226324,0.35908733,104780.0,104760.0,0.38468244]
[1750295226559,3.490915,104780.0,104770.0,0.21952737]
[1750295226837,0.34954298,104780.0,104770.0,0.21952737]
[1750295227254,0.35908614,104780.0,104770.0,0.21952737]
[1750295227474,0.37817311,104780.0,104770.0,0.21952737]
[1750295227691,3.7104218,104780.0,104770.0,0.38478348]
[1750295227912,3.70087845,104780.0,104770.0,0.38478348]
[1750295228132,3.70387845,104780.0,104770.0,0.40487191]
[1750295228347,3.50345835,104780.0,104770.0,0.41441598]
[1750295228572,3.71342116,104780.0,104770.0,0.22052774]
[1750295228797,3.7134218,104780.0,104770.0,0.21098348]
[1750295229013,3.80002767,104780.0,104770.0,0.18526462]
[1750295229461,3.69433483,104780.0,104770.0,0.17572]
[1750295229683,4.04456291,104780.0,104770.0,0.17572]
[1750295230350,4.04456291,104780.0,104770.0,0.001]
[1750295231174,4.06076291,104780.0,104770.0,0.001]
[1750295232253,0.343,104780.0,104770.0,0.22052737]
[1750295232459,0.36208623,104780.0,104770.0,0.22052737]
[1750295232672,0.38117311,104780.0,104770.0,0.22052737]
[1750295233098,0.36208623,104780.0,104770.0,0.25462737]
[1750295233319,0.36208623,104780.0,104770.0,0.23822737]
[1750295233534,0.37162976,104780.0,104770.0,0.23822737]
[1750295233962,0.38117338,104780.0,104770.0,0.2286833]
[1750295234197,0.6661842,104780.0,104770.0,0.17548]
[1750295234418,4.14824123,104780.0,104770.0,0.17548]
[1750295234633,4.05410653,104780.0,104770.0,0.001]
[1750295237362,3.94205203,104780.0,104770.0,0.001]
[1750295237548,4.30182382,104780.0,104770.0,0.001]
[1750295238844,4.2056746,104780.0,104770.0,0.001]
[1750295239340,3.84590281,104780.0,104770.0,0.001]
[1750295239496,3.53572828,104780.0,104770.0,0.20143895]
[1750295239734,3.52254568,104780.0,104770.0,0.22052756]
[1750295239959,0.37163068,104780.0,104770.0,0.21098339]
[1750295240165,0.5625068,104780.0,104770.0,0.21098339]
[1750295240588,0.55296345,104780.0,104770.0,0.21098339]
[1750295240799,0.55296345,104780.0,104770.0,0.22052774]
[1750295241650,0.343,104780.0,104770.0,0.23007181]
[1750295241913,0.35254335,104780.0,104770.0,0.23007181]
[1750295242160,0.35254335,104780.0,104770.0,0.77138536]
[1750295242161,0.003,104780.0,104770.0,0.77138536]
[1750295242381,0.003,104780.0,104770.0,0.86461121]
[1750295242600,0.003,104780.0,104770.0,0.88838764]
[1750295242805,0.003,104780.0,104770.0,0.78698764]
[1750295243037,0.003,104780.0,104770.0,0.56245857]
[1750295243260,0.003,104780.0,104770.0,0.56141857]
[1750295243473,0.20954207,104790.0,104780.0,0.21950643]
[1750295243685,3.350915,104790.0,104780.0,0.48934819]
[1750295243891,3.150915,104790.0,104780.0,0.48934819]
[1750295244325,0.03816601,104800.0,104790.0,0.21948575]
[1750295244764,0.02862412,104800.0,104790.0,0.21948575]
[1750295244982,0.03816582,104800.0,104790.0,0.229028]
[1750295245204,0.03816582,104800.0,104790.0,0.21948594]
[1750295245405,0.03816582,104800.0,104790.0,0.22902838]
[1750295245406,0.0477078,104800.0,104790.0,0.22902838]
[1750295245666,0.03816582,104800.0,104790.0,0.23857008]
[1750295246084,0.0190825,104800.0,104790.0,0.22902783]
[1750295246297,0.2200825,104800.0,104790.0,0.23957008]
[1750295246509,0.03916592,104800.0,104790.0,0.23957008]
[1750295246705,0.04870781,104800.0,104790.0,0.23002783]
[1750295246958,0.02962402,104800.0,104790.0,0.23957008]
[1750295247167,0.03916582,104800.0,104790.0,0.23957008]
[1750295247381,0.04870771,104800.0,104790.0,0.23957008]
[1750295247585,0.02962466,104800.0,104790.0,0.22048549]
[1750295247796,0.22008286,104800.0,104790.0,0.23002774]
[1750295248002,0.03916637,104800.0,104790.0,0.23002783]
[1750295248287,4.13698661,104800.0,104790.0,0.001]
[1750295248507,4.16857793,104800.0,104790.0,0.17404]
[1750295248749,4.16857793,104800.0,104790.0,0.001]
[1750295248750,4.64119148,104800.0,104790.0,0.001]
[1750295248975,4.9536149,104800.0,104790.0,0.001]
[1750295249203,0.35909279,104750.0,104740.0,0.29634467]
[1750295249499,0.37818441,104750.0,104740.0,0.30589157]
[1750295249720,0.58318038,104750.0,104740.0,0.45061051]
[1750295249942,3.7104851,104750.0,104740.0,0.28679768]
[1750295250201,3.7104851,104750.0,104740.0,0.27725051]
[1750295250429,3.7104851,104750.0,104740.0,0.46966512]
[1750295250643,3.7114851,104750.0,104740.0,0.47566512]
[1750295250862,3.70093875,104750.0,104740.0,0.2596215]
[1750295251081,3.72372669,104750.0,104740.0,0.47066503]
[1750295251305,3.70293875,104750.0,104740.0,0.47066503]
[1750295251532,3.70293875,104750.0,104740.0,0.48021211]
[1750295251748,3.70293875,104750.0,104740.0,0.40355806]
[1750295251983,3.69339231,104750.0,104740.0,0.36536901]
[1750295252201,3.69339231,104750.0,104740.0,0.38446344]
[1750295252418,3.69339231,104750.0,104740.0,0.39401052]
[1750295252637,3.50246153,104750.0,104740.0,0.40355742]
[1750295252853,3.50246081,104750.0,104740.0,0.41310423]
[1750295253079,0.002,104750.0,104740.0,0.44790423]
[1750295253318,0.002,104750.0,104740.0,0.90391778]
[1750295253535,0.002,104750.0,104740.0,0.54414599]
[1750295253751,0.002,104750.0,104740.0,0.90391778]
[1750295254226,0.002,104750.0,104740.0,0.91845863]
[1750295254420,0.002,104750.0,104740.0,0.96845863]
[1750295255528,0.34,104780.0,104770.0,0.25622737]
[1750295255742,0.34,104780.0,104770.0,0.42966737]
[1750295256987,0.341,104780.0,104770.0,0.43066737]
[1750295257270,0.341,104780.0,104770.0,0.41236737]
[1750295257483,0.34036,104780.0,104770.0,0.41236737]
[1750295258330,0.001,104780.0,104770.0,0.41236737]
[1750295258826,0.21054316,104780.0,104770.0,0.39396737]
[1750295259045,0.001,104780.0,104770.0,0.39364737]
[1750295259491,0.35054307,104780.0,104770.0,0.39364737]
[1750295259927,0.341,104780.0,104770.0,0.39364737]
[1750295260366,0.541,104780.0,104770.0,0.39364737]
[1750295261878,0.55054307,104780.0,104770.0,0.39364737]
[1750295262088,0.35054307,104780.0,104770.0,0.39364737]
[1750295263174,0.36008642,104780.0,104770.0,0.39364747]
[1750295263387,0.36008632,104780.0,104770.0,0.40319154]
[1750295263605,0.35054307,104780.0,104770.0,0.40319154]
[1750295264036,0.36963004,104780.0,104770.0,0.3836633]
[1750295264251,0.56050616,104780.0,104770.0,0.37395895]
[1750295264473,3.70187809,104780.0,104770.0,0.001]
[1750295264709,3.70187809,104780.0,104770.0,0.18298462]
[1750295265021,4.19209164,104780.0,104770.0,0.001]
[1750295265038,4.22367187,104780.0,104770.0,0.001]
[1750295265246,4.27507187,104780.0,104770.0,0.001]
[1750295265874,4.31830972,104780.0,104770.0,0.001]
[1750295266096,4.31830972,104780.0,104750.0,0.17232]
[1750295266097,0.55000317,104760.0,104750.0,0.17232]
[1750295266317,0.20047713,104750.0,104740.0,0.38242296]
[1750295266524,0.20047713,104750.0,104740.0,0.3728757]
[1750295266725,0.20047713,104750.0,104740.0,0.37287627]
[1750295267126,0.54047713,104750.0,104740.0,0.17238]
[1750295267341,0.54047713,104750.0,104740.0,0.0001]
[1750295267550,0.34954581,104750.0,104740.0,0.39177053]
[1750295267749,0.36863788,104750.0,104740.0,0.40131734]
[1750295268604,0.3706377,104750.0,104740.0,0.40231734]
[1750295268815,0.38018387,104750.0,104740.0,0.40231734]
[1750295268991,0.3706377,104750.0,104740.0,0.40231734]
[1750295269527,0.342,104750.0,104740.0,0.40231734]
[1750295269727,0.002,104750.0,104740.0,0.5332591]
[1750295270122,0.002,104750.0,104740.0,0.89335089]
[1750295270961,3.150915,104780.0,104770.0,0.03817693]
[1750295271170,3.150915,104780.0,104770.0,0.40135126]
[1750295271388,0.34,104780.0,104770.0,0.40135126]
[1750295271600,0.34954307,104780.0,104770.0,0.39180737]
[1750295271811,0.37817384,104780.0,104770.0,0.39180756]
[1750295272275,0.35908642,104780.0,104770.0,0.40135163]
[1750295272487,0.37817384,104780.0,104770.0,0.39180756]
[1750295272727,0.37817384,104780.0,104770.0,0.40135173]
[1750295273141,0.36608642,104780.0,104770.0,0.4118958]
[1750295273349,0.37563004,104780.0,104770.0,0.4118958]
[1750295273569,0.36608642,104780.0,104770.0,0.4118958]
[1750295273814,0.37563004,104780.0,104770.0,0.4118958]
[1750295274037,0.38517384,104780.0,104770.0,0.40235173]
[1750295274251,0.38517384,104780.0,104770.0,0.39280756]
[1750295274689,0.37563004,104780.0,104770.0,0.39280737]
[1750295275144,0.38517384,104780.0,104770.0,0.39280756]
[1750295275822,0.56650689,104780.0,104770.0,0.3832633]
[1750295276253,0.36608697,104780.0,104770.0,0.39280737]
[1750295276467,0.37563068,104780.0,104770.0,0.39280737]
[1750295276681,0.37563068,104780.0,104770.0,0.3832633]
[1750295276924,0.5665068,104780.0,104770.0,0.38326348]
[1750295277160,0.55696345,104780.0,104770.0,0.38326348]
[1750295277606,0.55696345,104780.0,104770.0,0.39280792]
[1750295277871,0.55696345,104780.0,104770.0,0.37371904]
[1750295278504,0.55696345,104780.0,104770.0,0.38326366]
[1750295278931,0.55696345,104780.0,104770.0,0.39280801]
[1750295279150,0.56650725,104780.0,104770.0,0.40235227]
[1750295279374,0.347,104780.0,104770.0,0.40235173]
[1750295279590,0.36608632,104780.0,104770.0,0.4118958]
[1750295279822,0.347,104780.0,104770.0,0.4118958]
[1750295280071,0.36608632,104780.0,104770.0,0.4118958]
[1750295280360,0.37562976,104780.0,104770.0,0.4118958]
[1750295280606,0.38517338,104780.0,104770.0,0.40235173]
[1750295280847,0.91673533,104780.0,104770.0,0.37327895]
[1750295281755,0.55696354,104780.0,104770.0,0.37327895]
[1750295281987,0.55696354,104780.0,104770.0,0.001]
[1750295281988,4.08482804,104780.0,104770.0,0.001]
[1750295282202,4.09328442,104780.0,104770.0,0.001]
[1750295282426,4.09328442,104780.0,104770.0,0.17272]